bitfinex/quotes_ETHUSD_20241216
["timestamp","ask_amount","ask_price","bid_price","bid_amount"]
[1734336945058,2.5307,3951.5,3951.1,0.7762]
[1734336945260,2.53087,3951.2,3951.1,0.7762]
[1734336945876,3.112021,3951.9,3951.1,0.7762]
[1734336946100,2.53068,3951.5,3951.1,0.7762]
[1734336946286,3.112021,3951.9,3951.1,0.7762]
[1734336946597,2.53075,3951.4,3951.1,0.7762]
[1734336946828,2.53049,3951.8,3951.1,0.7762]
[1734336947004,2.53036,3952.1,3951.1,0.7762]
[1734336947882,2.53038,3952.0,3951.1,0.7762]
[1734336948107,2.53038,3952.0,3951.1,1.055062]
[1734336948609,0.7945,3952.4,3951.1,0.7762]
[1734336948908,2.53049,3951.8,3951.1,0.76590549]
[1734336949081,2.53041,3952.0,3951.1,0.76590549]
[1734336949413,2.53011,3952.4,3951.1,1.56237]
[1734336949601,2.53011,3952.4,3951.3,0.55]
[1734336949906,3.21417659,3952.4,3951.3,0.55]
[1734336950268,3.0,3952.3,3951.3,0.55]
[1734336950473,3.0,3952.3,3951.2,1.01234]
[1734336950474,3.0,3952.2,3951.2,0.55]
[1734336951108,5.53027,3952.2,3951.1,0.55]
[1734336951310,5.53027,3952.2,3951.1,0.806243]
[1734336951610,2.53027,3952.2,3951.1,0.806243]
[1734336951809,2.53027,3952.2,3951.3,0.55]
[1734336952141,0.68406659,3952.4,3951.3,0.55]
[1734336952142,0.68406659,3952.4,3951.4,0.7733]
[1734336952427,3.0,3952.5,3951.5,0.833]
[1734336952712,5.53005,3952.5,3951.6,0.833]
[1734336953914,3.0,3952.7,3951.6,0.833]
[1734336954067,5.15416581,3952.8,3951.6,0.833]
[1734336954274,0.29107658,3952.7,3951.6,0.833]
[1734336954511,3.0,3952.4,3951.6,0.833]
[1734336954816,2.53024,3952.2,3951.6,0.833]
[1734336956394,3.0,3952.1,3951.6,0.833]
[1734336956576,3.0,3951.9,3951.6,0.833]
[1734336956776,0.553039,3951.9,3951.6,0.833]
[1734336956977,0.553039,3951.9,3951.0,1.0]
[1734336956978,2.53061,3951.7,3951.1,0.7655]
[1734336957240,5.53063,3951.6,3951.1,0.7655]
[1734336957462,1.87584669,3952.2,3951.1,0.7655]
[1734336957589,2.53081,3951.3,3951.1,0.7655]
[1734336957929,2.53081,3951.3,3951.0,1.0]
[1734336957930,3.0,3951.1,3951.0,1.0]
[1734336958077,3.0,3951.2,3951.0,1.0]
[1734336958578,2.53069,3951.5,3951.0,1.0]
[1734336958798,5.49028594,3952.1,3951.0,1.0]
[1734336958799,1.91147925,3952.1,3951.0,1.0]
[1734336959116,3.0,3951.7,3951.0,1.0]
[1734336959330,0.7982,3952.1,3951.0,1.0]
[1734336959534,2.53057,3951.7,3951.0,1.0]
[1734336959674,2.53063,3951.6,3951.0,1.0]
[1734336960275,3.32853,3952.1,3951.0,1.0]
[1734336960276,2.53055,3951.7,3951.0,1.0]
[1734336960480,0.7982,3952.1,3951.1,0.55]
[1734336960680,2.5304,3952.0,3951.2,0.7835]
[1734336960919,5.53022,3952.3,3951.2,0.7835]
[1734336961282,2.53049,3951.9,3951.2,0.7835]
[1734336961792,2.53028,3952.2,3951.3,0.55]
[1734336961992,2.53028,3952.2,3951.4,0.7619]
[1734336962316,3.0,3952.3,3951.4,0.7619]
[1734336962478,4.04844669,3952.5,3951.4,0.7619]
[1734336962681,2.53007,3952.5,3951.7,0.55]
[1734336962902,2.52992,3952.7,3951.8,0.8252]
[1734336963234,2.52979,3952.9,3951.9,0.55]
[1734336963555,2.52979,3952.9,3952.2,0.8252]
[1734336963756,1.04844669,3953.2,3952.2,0.8252]
[1734336963916,3.39406967,3953.1,3952.2,0.8252]
[1734336964240,2.52972,3953.0,3952.2,0.8252]
[1734336964622,1.64460936,3953.2,3952.2,0.8252]
[1734336964623,1.04844669,3953.2,3952.3,0.55]
[1734336964819,1.04844669,3953.4,3952.6,0.8091]
[1734336965028,1.04844669,3953.7,3952.6,0.8091]
[1734336965246,1.04844669,3953.7,3952.7,0.55]
[1734336965247,2.52945,3953.5,3952.7,0.55]
[1734336966713,1.04844669,3953.8,3952.9,0.55]
[1734336966714,2.52922,3953.8,3952.9,0.55]
[1734336966918,1.04844669,3954.0,3953.0,0.8071]
[1734336967115,3.57751669,3954.1,3953.3,0.55]
[1734336967314,1.04844669,3954.2,3953.3,0.55]
[1734336967543,0.26211167,3954.1,3953.3,0.55]
[1734336968145,0.26211167,3954.1,3953.2,0.8071]
[1734336968146,0.26211167,3954.1,3953.2,0.55]
[1734336968314,1.04844669,3954.4,3953.4,0.55]
[1734336968315,2.52915,3953.9,3953.4,0.55]
[1734336968645,2.52908,3954.0,3953.4,0.55]
[1734336968841,2.52927,3953.7,3953.3,0.8305]
[1734336969146,2.52895,3954.2,3952.3,0.7796]
[1734336969147,0.252927,3953.6,3952.3,0.7796]
[1734336969344,2.52933,3953.7,3952.4,0.55]
[1734336969659,2.52933,3953.7,3952.6,0.55]
[1734336970002,2.52934,3953.6,3952.6,0.55]
[1734336970380,2.52949,3953.4,3952.6,0.55]
[1734336970511,0.54529458,3953.8,3952.5,0.7796]
[1734336970512,2.52934,3953.6,3952.5,0.7796]
[1734336970717,2.52961,3953.2,3952.5,0.7796]
[1734336971073,2.782571,3953.2,3952.5,0.7796]
[1734336971721,0.252961,3953.2,3952.5,0.7796]
[1734336971970,2.52941,3953.5,3952.6,0.55]
[1734336972252,2.52928,3953.7,3953.0,0.55]
[1734336973354,0.7901,3954.3,3953.0,0.55]
[1734336973355,0.7901,3954.3,3953.1,0.8212]
[1734336973532,2.52908,3954.1,3953.3,0.8212]
[1734336973849,0.39927125,3954.2,3953.3,0.8212]
[1734336974018,2.52913,3954.0,3953.3,0.8212]
[1734336974216,0.39927125,3954.2,3953.4,0.55]
[1734336974551,2.52895,3954.3,3953.6,0.55]
[1734336975055,2.51981152,3954.3,3953.6,0.55]
[1734336975253,2.52895,3954.2,3953.6,0.55]
[1734336975838,0.7901,3954.7,3953.6,0.55]
[1734336976144,0.7901,3954.7,3953.5,0.8244]
[1734336976145,2.52927,3953.7,3953.5,0.8244]
[1734336976356,2.782267,3953.6,3952.2,1.52885]
[1734336976620,2.52911,3954.0,3952.3,0.75905]
[1734336976818,2.52897,3954.2,3952.6,0.8294]
[1734336977127,0.7607,3954.5,3952.6,0.8294]
[1734336977128,2.52962,3953.2,3952.6,0.8294]
[1734336977338,2.52969,3953.1,3952.6,0.8294]
[1734336977634,0.252931,3953.6,3952.6,0.8294]
[1734336977864,2.52979,3952.9,3952.6,0.8294]
[1734336978653,2.52972,3953.0,3952.6,0.8294]
[1734336978982,0.252931,3953.6,3952.6,0.8294]
[1734336979278,2.52988,3952.8,3952.6,0.8294]
[1734336980374,2.52991,3952.7,3952.6,0.8294]
[1734336980953,2.52991,3952.7,3951.9,0.8079]
[1734336980954,2.52992,3952.7,3951.9,0.8079]
[1734336981169,2.53014,3952.4,3951.9,0.8079]
[1734336981355,2.52992,3952.7,3951.9,0.8079]
[1734336981551,2.53017,3952.3,3951.9,0.8079]
[1734336981755,2.53007,3952.5,3951.9,0.8079]
[1734336982198,2.53014,3952.4,3951.9,0.8079]
[1734336983649,2.52987,3952.8,3952.0,0.55]
[1734336983850,2.16912914,3953.5,3952.3,0.7565]
[1734336984045,2.52946,3953.4,3952.3,0.7565]
[1734336984949,1.12607968,3953.5,3952.3,0.7565]
[1734336985153,2.52966,3953.1,3952.3,0.7565]
[1734336985399,2.782311,3953.6,3952.4,0.55]
[1734336985546,2.52954,3953.3,3952.5,0.7702]
[1734336985749,1.04304946,3953.9,3952.7,0.7702]
[1734336986058,1.04304946,3954.7,3953.7,2.15416581]
[1734336986256,3.29169,3955.3,3953.8,1.83820997]
[1734336986481,1.04304946,3955.5,3953.8,1.60816813]
[1734336986708,1.04304946,3955.5,3953.8,2.06027952]
[1734336986709,2.52851,3954.9,3953.8,2.06027952]
[1734336987001,2.52829,3955.3,3953.8,1.77231139]
[1734336987313,0.33715237,3955.4,3953.8,1.77231139]
[1734336987314,2.52864,3954.7,3953.8,1.3202]
[1734336987953,2.52873,3954.6,3953.8,1.3202]
[1734336988587,0.65343676,3955.3,3953.8,1.3202]
[1734336988881,2.52882,3954.5,3953.8,1.3202]
[1734336990081,3.65343676,3955.3,3953.8,1.3202]
[1734336990307,2.52866,3954.7,3953.8,1.3202]
[1734336990507,2.52851,3954.9,3953.8,1.45222]
[1734336990716,3.65343676,3955.3,3953.8,1.45222]
[1734336990877,2.52831,3955.2,3953.8,1.45222]
[1734336991059,0.65343676,3955.3,3953.8,1.45222]
[1734336991567,0.65343676,3955.3,3953.8,1.3202]
[1734336991751,2.5289,3954.3,3953.8,1.3202]
[1734336991957,2.52885,3954.4,3953.8,0.7702]
[1734336992719,0.776,3955.0,3953.8,0.7702]
[1734336992931,2.52882,3954.5,3953.8,0.7702]
[1734336993211,2.52884,3954.4,3953.8,0.7702]
[1734336994992,2.52866,3954.7,3953.9,0.55]
[1734336995192,1.16345237,3955.4,3953.9,0.55]
[1734336995193,2.5287,3954.6,3953.9,0.55]
[1734336995757,2.52838,3955.1,3953.9,0.55]
[1734336995758,2.52844,3955.0,3953.9,0.55]
[1734336995979,0.57102568,3955.0,3953.9,0.55]
[1734336996177,2.52845,3955.0,3954.1,0.55]
[1734336996397,3.69168237,3955.4,3954.1,0.55]
[1734336996398,2.52851,3954.9,3954.1,0.55]
[1734336996710,3.69168237,3955.4,3954.1,0.55]
[1734336996862,2.52863,3954.8,3954.1,0.55]
[1734336997221,2.52899,3954.2,3954.0,0.7636]
[1734336997496,2.52885,3954.4,3954.0,0.7636]
[1734336997664,0.65343676,3955.3,3954.0,0.7636]
[1734336997865,0.44797368,3955.2,3954.0,0.7636]
[1734336998602,2.97628368,3955.2,3954.0,0.7636]
[1734336998787,2.52838,3955.1,3954.0,0.7636]
[1734336999107,2.52857,3954.8,3954.0,0.7636]
[1734337000402,2.52863,3954.7,3954.0,0.7636]
[1734337000800,0.44797368,3955.2,3954.0,0.7636]
[1734337000998,2.52878,3954.5,3954.0,0.7636]
[1734337001495,2.52844,3955.0,3954.0,0.7636]
[1734337001703,2.5285,3954.9,3954.0,0.7636]
[1734337001889,2.52902,3954.1,3954.0,0.7636]
[1734337002538,2.5285,3954.9,3954.0,0.7636]
[1734337002747,0.19277104,3955.1,3954.0,0.7636]
[1734337002944,2.52844,3955.0,3954.0,0.7636]
[1734337003118,2.52852,3954.9,3954.1,0.55]
[1734337003622,2.52858,3954.8,3954.1,0.7625]
[1734337003989,4.80714946,3955.8,3954.2,0.55]
[1734337004213,2.5284,3955.1,3954.4,0.55]
[1734337004432,2.5282,3955.4,3954.8,0.55]
[1734337004630,2.5282,3955.4,3954.8,0.74308]
[1734337005098,2.52791,3955.9,3954.8,0.74308]
[1734337005300,2.52813,3955.5,3954.8,0.74308]
[1734337005507,2.52791,3955.9,3954.8,0.74308]
[1734337005695,0.8073,3956.2,3954.8,0.55]
[1734337005889,2.52826,3955.3,3954.8,0.55]
[1734337006089,2.52824,3955.4,3954.8,0.55]
[1734337006424,0.8073,3956.2,3954.8,0.55]
[1734337006425,2.52832,3955.2,3954.8,0.55]
[1734337006637,0.8073,3956.2,3954.7,0.8308]
[1734337006816,2.52849,3955.0,3954.7,0.8308]
[1734337007418,2.52857,3954.8,3954.7,0.8308]
[1734337007593,2.52873,3954.6,3953.6,0.8122]
[1734337007798,2.52825,3955.3,3953.6,0.8122]
[1734337008010,2.52888,3954.4,3953.6,0.8122]
[1734337008504,2.52858,3954.8,3953.6,0.8122]
[1734337008505,2.5289,3954.3,3953.6,0.8122]
[1734337008707,2.52895,3954.3,3953.6,0.8122]
[1734337009317,2.52895,3954.3,3953.7,0.55]
[1734337010809,2.52864,3954.7,3953.7,0.55]
[1734337010810,2.52897,3954.2,3953.7,0.55]
[1734337011105,2.52902,3954.1,3953.7,0.55]
[1734337011306,2.5292,3953.9,3953.6,0.8122]
[1734337012225,3.0,3954.6,3953.6,0.8122]
[1734337012448,2.52927,3953.7,3953.6,0.8122]
[1734337014332,2.52954,3953.3,3953.2,0.7963]
[1734337014543,2.52975,3953.0,3952.8,0.7963]
[1734337014948,2.52941,3953.5,3952.8,0.7963]
[1734337015655,2.52972,3953.1,3952.8,0.7963]
[1734337016010,2.53011,3952.4,3952.2,0.7596]
[1734337016204,2.53017,3952.3,3952.2,0.7596]
[1734337016816,0.7908,3953.2,3952.2,0.7596]
[1734337017023,2.52998,3952.6,3952.2,0.7596]
[1734337017223,2.53005,3952.5,3952.2,0.7596]
[1734337017543,2.53017,3952.3,3952.2,0.7596]
[1734337018451,2.53042,3952.0,3951.6,0.7978]
[1734337022852,2.15416581,3952.6,3951.6,0.7978]
[1734337023055,2.53054,3951.8,3951.6,0.7978]
[1734337023415,0.7616,3952.5,3951.6,0.7978]
[1734337023416,2.53055,3951.7,3951.6,0.7978]
[1734337023652,2.53063,3951.6,3951.1,1.3264]
[1734337023866,2.15416581,3952.2,3951.1,0.7764]
[1734337024028,2.53094,3951.1,3951.0,1.0]
[1734337025318,2.53076,3951.4,3951.0,1.0]
[1734337025526,2.53081,3951.3,3951.0,1.0]
[1734337025943,2.53085,3951.3,3951.0,1.0]
[1734337026147,2.53078,3951.4,3951.0,1.0]
[1734337026348,2.53082,3951.3,3951.0,1.0]
[1734337026744,0.8193,3952.4,3951.1,0.8088]
[1734337026946,2.53045,3951.9,3951.1,0.8088]
[1734337027730,2.5305,3951.8,3951.1,0.8088]
[1734337027930,0.8193,3952.4,3951.1,0.8088]
[1734337028133,2.53052,3951.8,3951.1,0.8088]
[1734337028555,2.53057,3951.7,3951.1,0.8088]
[1734337028760,3.0,3952.1,3951.1,0.8088]
[1734337028761,2.53062,3951.6,3951.1,0.8088]
[1734337029057,3.0,3951.9,3951.1,0.8088]
[1734337029353,2.53031,3952.1,3951.1,0.8088]
[1734337029935,2.53031,3952.1,3951.3,0.8035]
[1734337030132,2.53036,3952.0,3951.4,0.55]
[1734337030339,2.5296,3953.2,3951.4,0.55]
[1734337030340,0.7918,3953.4,3951.5,0.8035]
[1734337030541,0.7918,3953.4,3952.0,0.55]
[1734337031065,2.52985,3952.8,3952.0,0.55]
[1734337031543,0.7918,3953.4,3952.0,0.55]
[1734337031745,2.52987,3952.8,3952.0,0.55]
[1734337032326,2.52959,3953.3,3952.0,0.55]
[1734337032527,2.52989,3952.8,3952.0,0.55]
[1734337032926,2.52992,3952.7,3952.0,0.55]
[1734337033329,2.53005,3952.5,3951.9,0.8035]
[1734337033563,2.53013,3952.4,3951.9,0.8035]
[1734337033767,2.53036,3952.0,3951.9,0.8035]
[1734337033966,2.53021,3952.3,3951.6,0.7699]
[1734337034573,2.53005,3952.5,3951.6,0.7699]
[1734337035053,2.53012,3952.4,3951.6,0.7699]
[1734337035255,2.783132,3952.4,3951.6,0.7699]
[1734337035461,2.53018,3952.3,3951.6,0.7699]
[1734337036191,2.52987,3952.8,3951.6,0.7699]
[1734337036571,2.52991,3952.7,3951.6,0.7699]
[1734337037435,2.53021,3952.3,3951.6,0.7699]
[1734337037635,2.52991,3952.7,3951.6,0.7699]
[1734337037901,0.252991,3952.6,3951.6,0.7699]
[1734337038068,2.53004,3952.5,3951.6,0.7699]
[1734337038273,2.53036,3952.1,3951.6,0.7699]
[1734337038673,2.53043,3951.9,3951.6,0.7699]
[1734337040877,0.8289,3952.3,3951.2,0.7926]
[1734337041076,2.53061,3951.7,3951.2,0.7926]
[1734337041389,2.53062,3951.6,3951.2,0.7926]
[1734337041767,2.53012,3952.4,3951.2,0.7926]
[1734337041948,2.53034,3952.1,3951.2,0.7926]
[1734337042148,2.53034,3952.1,3951.3,0.55]
[1734337042378,2.53034,3952.1,3951.3,0.78426]
[1734337042886,4.040991,3952.6,3951.3,0.78426]
[1734337043188,2.5305,3951.8,3951.3,0.55]
[1734337043986,2.5301,3952.4,3951.3,0.55]
[1734337044210,1.040991,3952.6,3951.2,0.8076]
[1734337044361,4.68388581,3953.1,3951.0,3.15416581]
[1734337044362,2.52972,3953.1,3951.6,0.55]
[1734337044565,2.52985,3952.8,3951.7,0.8076]
[1734337044874,2.52985,3952.8,3951.9,0.55]
[1734337045187,1.33185558,3953.2,3951.9,0.55]
[1734337045388,1.33185558,3953.2,3951.7,0.8076]
[1734337045389,2.53011,3952.4,3951.7,0.8076]
[1734337045596,2.15416581,3953.1,3951.7,0.8076]
[1734337045792,2.53025,3952.2,3951.7,0.8076]
[1734337046182,2.53031,3952.1,3951.7,0.8076]
[1734337046487,2.53049,3951.8,3951.7,0.8076]
[1734337047966,0.8178,3952.5,3951.1,0.7564]
[1734337048169,2.53078,3951.4,3951.1,0.7564]
[1734337048525,2.53082,3951.3,3951.1,0.7564]
[1734337050331,2.53087,3951.2,3951.0,1.0]
[1734337050523,2.53094,3951.1,3951.0,1.0]
[1734337050725,2.53094,3951.1,3950.3,0.7675]
[1734337050726,2.53124,3950.7,3950.3,0.7675]
[1734337051027,3.037121,3951.1,3950.3,0.7675]
[1734337051028,2.53099,3951.1,3950.3,0.7675]
[1734337051325,2.53074,3951.4,3950.3,0.7675]
[1734337051487,2.53107,3950.9,3950.3,0.7675]
[1734337052520,0.253074,3951.3,3950.3,0.7675]
[1734337052722,2.53115,3950.8,3950.3,0.7675]
[1734337053019,0.253074,3951.3,3950.3,0.7675]
[1734337053020,2.53101,3951.0,3950.3,0.7675]
[1734337053230,2.53108,3950.9,3950.3,0.7675]
[1734337054004,2.53117,3950.8,3950.3,0.7675]
[1734337054202,2.53119,3950.7,3950.3,0.7675]
[1734337054890,2.53127,3950.6,3950.3,0.7675]
[1734337056229,0.8288,3951.1,3950.3,0.7675]
[1734337056426,2.53138,3950.4,3950.0,9.34402727]
[1734337056631,2.53158,3950.1,3950.0,8.52272727]
[1734337058712,2.53145,3950.3,3950.0,8.52272727]
[1734337059223,2.53132,3950.6,3950.1,0.7537]
[1734337059435,3.0,3951.0,3950.1,0.7537]
[1734337059634,2.53113,3950.8,3950.0,8.52272727]
[1734337059934,2.53152,3950.2,3950.0,8.52272727]
[1734337060101,2.53138,3950.5,3950.0,8.52272727]
[1734337060427,2.53113,3950.8,3950.0,8.52272727]
[1734337060591,2.53149,3950.3,3950.0,8.52272727]
[1734337060992,2.53158,3950.1,3950.0,8.52272727]
[1734337062005,2.53152,3950.2,3950.0,8.52272727]
[1734337062208,0.3166208,3950.7,3950.0,8.52272727]
[1734337062209,2.53158,3950.1,3950.0,8.52272727]
[1734337063533,3.36038,3950.1,3950.0,8.52272727]
[1734337063738,9.10372581,3950.1,3950.0,8.52272727]
[1734337064031,9.10372581,3950.1,3950.0,6.64821843]
[1734337064706,6.94956,3950.1,3950.0,6.64821843]
[1734337064893,3.94956,3950.1,3950.0,6.64821843]
[1734337065328,3.12076,3950.1,3950.0,6.64821843]
[1734337066808,0.7973,3950.4,3950.0,6.64821843]
[1734337067028,2.53153,3950.2,3950.0,6.64821843]
[1734337067334,2.53158,3950.1,3950.0,6.64821843]
[1734337067934,2.53145,3950.3,3950.0,6.64821843]
[1734337068113,0.66198408,3950.5,3950.0,6.64821843]
[1734337068431,2.53153,3950.2,3950.0,6.64821843]
[1734337070121,2.53158,3950.1,3950.0,6.64821843]
[1734337071235,2.53151,3950.3,3950.0,6.64821843]
[1734337072724,0.66198408,3950.5,3950.0,6.64821843]
[1734337072903,2.53147,3950.3,3950.0,6.64821843]
[1734337074437,6.30307,3950.8,3950.0,6.64821843]
[1734337074438,2.53128,3950.6,3950.0,6.64821843]
[1734337074621,2.53113,3950.8,3950.1,0.796]
[1734337074824,2.5312,3950.7,3950.1,0.796]
[1734337075025,2.53098,3951.1,3950.1,0.796]
[1734337075026,3.0,3951.0,3950.1,0.796]
[1734337075204,0.7683,3951.2,3950.1,0.796]
[1734337075404,0.59224658,3951.1,3950.1,0.796]
[1734337075623,2.15416581,3950.9,3950.0,6.64821843]
[1734337075821,2.53158,3950.1,3950.0,6.64821843]
[1734337081431,3.29888,3950.1,3950.0,6.64821843]
[1734337082357,6.29888,3950.1,3950.0,6.64821843]
[1734337082532,7.18191,3950.1,3950.0,6.64821843]
[1734337083842,7.18191,3950.1,3950.0,6.63705626]
[1734337084930,3.41461,3950.1,3950.0,6.63705626]
[1734337085223,2.53158,3950.1,3950.0,6.63705626]
[1734337087750,5.53158,3950.1,3950.0,6.63705626]
[1734337088133,2.53158,3950.1,3950.0,6.63705626]
[1734337088530,3.70256338,3951.0,3950.0,6.63705626]
[1734337088531,2.53106,3951.0,3950.1,0.7983]
[1734337088766,2.53087,3951.2,3950.3,0.7983]
[1734337089330,1.26090458,3951.9,3950.3,0.7983]
[1734337089582,2.53113,3950.8,3950.3,0.7983]
[1734337090635,2.531,3951.1,3950.3,0.7983]
[1734337091170,2.53079,3951.4,3950.3,0.7983]
[1734337091343,2.53085,3951.3,3950.5,0.7963]
[1734337091542,3.0,3951.6,3950.5,0.7963]
[1734337091762,2.53098,3951.1,3950.5,0.7963]
[1734337092585,4.04304946,3951.8,3950.8,0.55]
[1734337092586,2.53055,3951.8,3950.8,0.55]
[1734337092732,2.53055,3951.8,3951.1,0.8085]
[1734337093233,2.53024,3952.2,3951.1,0.8085]
[1734337093234,2.53075,3951.4,3951.1,0.8085]
[1734337094058,2.53082,3951.3,3951.1,0.8085]
[1734337094733,2.53087,3951.2,3951.1,0.8085]
[1734337094933,2.53073,3951.5,3951.1,0.8085]
[1734337095163,2.53082,3951.3,3951.1,0.8085]
[1734337095474,2.53095,3951.1,3950.5,1.3099]
[1734337095637,2.53078,3951.4,3950.6,0.1465676]
[1734337096365,2.53079,3951.4,3950.6,0.1465676]
[1734337096569,2.53089,3951.2,3950.6,0.1465676]
[1734337097066,2.53096,3951.1,3950.6,0.1465676]
[1734337097585,2.53102,3951.0,3950.5,0.7599]
[1734337098035,2.53068,3951.5,3950.5,0.7599]
[1734337098241,2.53122,3950.7,3950.5,0.7599]
[1734337099575,2.53131,3950.6,3950.2,0.8162]
[1734337101461,3.0,3951.4,3950.2,0.8162]
[1734337101772,2.53111,3950.9,3950.2,0.8162]
[1734337102348,3.18822295,3951.3,3950.2,0.8162]
[1734337102548,2.53113,3950.8,3950.2,0.8162]
[1734337102757,3.18822295,3951.3,3950.2,0.8162]
[1734337102758,0.65737295,3951.3,3950.2,0.8162]
[1734337102942,3.0,3951.4,3950.2,0.8162]
[1734337102943,2.5308,3951.4,3950.4,0.7913]
[1734337103276,2.5308,3951.4,3950.2,2.89949144]
[1734337103277,2.5308,3951.4,3950.6,0.7913]
[1734337103778,2.53053,3951.8,3950.8,0.7913]
[1734337103940,1.04304946,3952.3,3951.0,0.7913]
[1734337104140,2.53038,3952.0,3951.0,0.7913]
[1734337104341,2.53038,3952.0,3951.2,0.7913]
[1734337104949,1.04304946,3952.3,3951.2,0.7913]
[1734337105188,2.53046,3951.9,3951.2,0.7913]
[1734337105389,2.53074,3951.5,3951.2,0.7913]
[1734337106680,0.33671237,3952.2,3951.2,0.7913]
[1734337106902,2.53038,3952.0,3951.2,0.7913]
[1734337107035,0.33671237,3952.2,3951.3,0.55]
[1734337107036,2.86695237,3952.2,3951.3,0.55]
[1734337107236,2.86695237,3952.2,3951.4,0.7685]
[1734337107841,2.53031,3952.1,3951.4,0.7685]
[1734337109376,2.53002,3952.6,3951.8,0.55]
[1734337109681,2.52959,3953.2,3951.9,0.7824]
[1734337109890,1.04304946,3953.6,3952.0,0.55]
[1734337109891,2.52967,3953.1,3952.0,0.55]
[1734337110175,2.52967,3953.1,3952.1,0.7824]
[1734337110477,2.52953,3953.3,3952.2,2.15416581]
[1734337110776,1.04304946,3954.1,3952.2,2.15416581]
[1734337110777,2.52937,3953.6,3952.5,0.7824]
[1734337111177,0.7578,3954.3,3952.7,0.7824]
[1734337111478,2.52927,3953.7,3952.7,0.7824]
[1734337111780,3.71874001,3954.7,3952.9,1.3324]
[1734337111781,2.52909,3954.0,3952.9,1.3324]
[1734337112077,2.52915,3953.9,3953.0,0.7824]
[1734337112673,2.52882,3954.4,3953.0,0.7824]
[1734337112841,2.52907,3954.1,3953.0,0.7824]
[1734337113209,2.52865,3954.7,3953.2,0.55]
[1734337113413,2.52898,3954.2,3953.3,0.8315]
[1734337113906,0.7639,3954.9,3953.3,0.8315]
[1734337114119,2.52906,3954.1,3953.3,0.8315]
[1734337114432,2.52888,3954.4,3953.3,0.8315]
[1734337114729,3.034642,3954.4,3953.3,0.8315]
[1734337115015,3.29242,3954.9,3953.3,0.8315]
[1734337115016,2.5289,3954.3,3953.3,0.8315]
[1734337115435,2.52839,3955.1,3953.5,0.8315]
[1734337115705,2.52884,3954.4,3953.7,0.8315]
[1734337115923,2.52838,3955.1,3953.7,0.8315]
[1734337116090,2.52874,3954.6,3953.7,0.8315]
[1734337116473,0.329228,3955.0,3953.7,0.8315]
[1734337116777,2.52852,3954.9,3954.1,0.824]
[1734337117200,0.78273073,3955.7,3954.1,0.824]
[1734337117406,2.52829,3955.3,3954.1,0.824]
[1734337117670,0.78273073,3955.7,3954.2,0.7896]
[1734337117877,2.52832,3955.2,3954.2,0.7896]
[1734337118071,2.52832,3955.2,3954.3,0.7896]
[1734337118672,0.02533073,3955.7,3954.2,2.15416581]
[1734337118673,0.02533073,3955.7,3954.4,1.3097]
[1734337118877,0.02533073,3955.7,3954.8,0.55]
[1734337118878,2.52815,3955.5,3954.8,0.55]
[1734337119170,0.02533073,3955.7,3954.8,0.55]
[1734337119399,0.02533073,3955.7,3954.7,0.7597]
[1734337119400,0.02533073,3955.7,3954.9,0.7597]
[1734337120288,2.52819,3955.4,3954.9,0.7597]
[1734337120613,0.02533073,3955.7,3954.9,0.7597]
[1734337120831,2.52806,3955.6,3954.9,0.7597]
[1734337121124,2.52838,3955.1,3954.9,0.7597]
[1734337121685,2.52825,3955.4,3954.9,0.7597]
[1734337122728,2.52808,3955.6,3954.9,0.7597]
[1734337122906,2.55338073,3955.7,3955.2,0.55]
[1734337123105,5.52755,3956.4,3955.1,0.7597]
[1734337123425,2.52831,3955.2,3955.1,0.7597]
[1734337124889,0.8268,3955.9,3955.1,0.7597]
[1734337125102,2.52825,3955.3,3955.1,0.7597]
[1734337125401,0.7927,3956.2,3955.1,0.7597]
[1734337125402,2.52814,3955.5,3955.1,0.7597]
[1734337125920,0.7927,3956.2,3955.1,0.7597]
[1734337126128,2.52824,3955.4,3955.1,0.7597]
[1734337127439,2.52809,3955.6,3955.1,0.7597]
[1734337127639,2.52712,3957.1,3955.1,0.7597]
[1734337127640,2.52792,3955.9,3955.1,0.7597]
[1734337127801,2.52792,3955.9,3955.3,0.8035]
[1734337128001,2.52792,3955.9,3955.4,0.13535]
[1734337128526,2.52792,3955.9,3955.5,0.7642]
[1734337129040,2.52765,3956.3,3955.6,0.55]
[1734337129344,2.52765,3956.3,3955.7,0.7642]
[1734337129931,2.52749,3956.5,3955.8,0.55]
[1734337130116,0.8321,3957.1,3955.9,0.7642]
[1734337131051,2.52775,3956.1,3955.9,0.7642]
[1734337131911,2.52761,3956.3,3955.9,0.7642]
[1734337132354,2.52761,3956.3,3955.9,0.89562]
[1734337133446,0.8198,3957.7,3956.2,0.55]
[1734337133648,2.52697,3957.3,3956.3,0.8223]
[1734337133846,2.52678,3957.6,3956.3,0.8223]
[1734337134148,2.52729,3956.8,3956.3,0.8223]
[1734337134508,2.52698,3957.3,3956.3,0.8223]
[1734337134719,2.52723,3957.0,3956.3,0.8223]
[1734337134916,2.52716,3957.1,3956.3,0.8223]
[1734337135137,0.12351229,3958.2,3956.2,2.70416581]
[1734337135138,2.52678,3957.6,3956.5,0.8033]
[1734337135449,3.8301,3958.0,3956.7,0.8033]
[1734337135450,2.52705,3957.2,3956.7,0.8033]
[1734337135666,2.52692,3957.4,3956.8,0.55]
[1734337136081,2.52692,3957.4,3956.8,0.8033]